bitfinex/quotes_BTCUSD_20251120
["timestamp","ask_amount","ask_price","bid_price","bid_amount"]
[1763646621591,0.00999999,91790.0,91774.0,0.73479363]
[1763646622022,0.00999999,91790.0,91774.0,0.73579363]
[1763646622379,0.02039998,91800.0,91797.0,0.0108936]
[1763646622556,0.00052622,91800.0,91799.0,0.25344068]
[1763646622740,0.00052622,91800.0,91799.0,0.30312647]
[1763646622945,0.00052622,91800.0,91799.0,0.31275647]
[1763646623452,0.00052622,91800.0,91799.0,0.36485896]
[1763646624476,0.00052622,91800.0,91799.0,0.03557339]
[1763646624677,0.00052622,91800.0,91799.0,0.04620339]
[1763646624904,0.00052622,91800.0,91799.0,0.09830588]
[1763646625108,0.00052622,91800.0,91799.0,0.09930588]
[1763646625328,0.00052622,91800.0,91799.0,0.09730588]
[1763646625530,0.00052622,91800.0,91799.0,0.17825314]
[1763646625733,1e-08,91800.0,91799.0,0.50125314]
[1763646625900,0.0004,91830.0,91829.0,0.21779612]
[1763646626232,0.0004,91830.0,91829.0,0.31672452]
[1763646626233,0.0005262,91830.0,91829.0,0.31672452]
[1763646626438,0.0005262,91830.0,91829.0,0.32635452]
[1763646626848,0.0005262,91830.0,91829.0,0.31672452]
[1763646626993,0.0108898,91829.0,91805.0,0.00963]
[1763646627192,0.01157,91822.0,91818.0,0.21782011]
[1763646627438,0.01536,91819.0,91812.0,0.2178355]
[1763646627634,0.01536,91819.0,91816.0,0.01089134]
[1763646627833,0.00999999,91820.0,91818.0,0.2178211]
[1763646628077,0.03141586,91830.0,91825.0,0.01089028]
[1763646628286,0.03141586,91830.0,91816.0,0.22871321]
[1763646628287,0.01089122,91817.0,91815.0,0.21782893]
[1763646628437,0.01999998,91820.0,91818.0,0.21782221]
[1763646628818,0.01999998,91820.0,91817.0,0.22871309]
[1763646629024,0.01089087,91820.0,91816.0,0.21782683]
[1763646629247,0.0015262,91830.0,91828.0,0.21779628]
[1763646629584,0.0005262,91830.0,91828.0,0.21779628]
[1763646630533,0.0005262,91830.0,91827.0,0.01631339]
[1763646630734,0.01141588,91830.0,91827.0,0.2178]
[1763646630931,0.01141588,91830.0,91822.0,0.01089063]
[1763646630932,0.22869395,91826.0,91822.0,0.01089063]
[1763646631131,0.22869026,91828.0,91820.0,0.01089087]
[1763646631521,0.03052617,91830.0,91827.0,0.01631339]
[1763646631724,0.01152619,91830.0,91828.0,0.21779836]
[1763646631938,0.01052619,91830.0,91828.0,0.21779836]
[1763646632189,0.03052617,91830.0,91824.0,0.01089039]
[1763646632441,0.21832012,91830.0,91804.0,0.00376]
[1763646632665,0.00999999,91820.0,91818.0,0.21782086]
[1763646632889,0.00999999,91820.0,91819.0,0.26519398]
[1763646633116,0.02052618,91830.0,91828.0,0.21779849]
[1763646633328,0.0005262,91830.0,91827.0,0.01089004]
[1763646633541,0.0005262,91830.0,91829.0,0.21779612]
[1763646633751,0.0005262,91830.0,91829.0,0.28640271]
[1763646633970,0.00212405,91830.0,91829.0,0.28640271]
[1763646634184,0.00312405,91830.0,91829.0,0.3219761]
[1763646634591,0.00212405,91830.0,91829.0,0.3219761]
[1763646635020,0.00312405,91830.0,91829.0,0.3219761]
[1763646635226,0.00212405,91830.0,91829.0,0.3219761]
[1763646636196,0.00212405,91830.0,91829.0,0.37407859]
[1763646636990,0.02039998,91850.0,91849.0,0.21774869]
[1763646636991,0.0004,91850.0,91849.0,0.21774869]
[1763646637195,0.0004,91850.0,91849.0,0.28273651]
[1763646637609,0.00098074,91850.0,91849.0,0.28273651]
[1763646638329,0.00098074,91850.0,91849.0,0.2990499]
[1763646638532,0.00098074,91850.0,91849.0,0.35115239]
[1763646638909,0.0004,91860.0,91859.0,0.26982748]
[1763646639137,0.00082058,91860.0,91859.0,0.3341512]
[1763646639355,0.00082058,91860.0,91859.0,0.3437812]
[1763646640178,0.00082058,91860.0,91859.0,0.3341512]
[1763646640389,0.00082058,91860.0,91859.0,0.3437812]
[1763646640552,0.00082058,91860.0,91859.0,0.27828871]
[1763646640733,0.00082058,91860.0,91859.0,0.28200871]
[1763646641093,0.00082058,91860.0,91859.0,0.06428372]
[1763646641285,0.00082058,91860.0,91859.0,0.07391372]
[1763646641579,0.00082058,91860.0,91859.0,0.07491372]
[1763646641988,0.00082058,91860.0,91859.0,0.06428372]
[1763646642425,0.00082058,91860.0,91846.0,0.00963]
[1763646642426,0.2286348,91850.0,91846.0,0.00963]
[1763646642631,0.01088636,91858.0,91846.0,0.00963]
[1763646642632,0.01088636,91858.0,91848.0,0.01631339]
[1763646642830,0.01088696,91853.0,91847.0,0.02720106]
[1763646643182,0.25943041,91860.0,91853.0,0.22862424]
[1763646643383,0.00082058,91860.0,91859.0,0.21772499]
[1763646643530,0.00082058,91860.0,91859.0,0.21872499]
[1763646644161,0.00082058,91860.0,91859.0,0.23698499]
[1763646644362,0.00182058,91860.0,91859.0,0.23698499]
[1763646644586,0.00211088,91860.0,91859.0,0.30749545]
[1763646644761,0.00311088,91860.0,91859.0,0.30749545]
[1763646644961,0.00111088,91860.0,91859.0,0.30749545]
[1763646645161,0.00111088,91860.0,91859.0,0.30764145]
[1763646646361,0.00111088,91860.0,91859.0,0.29801145]
[1763646646584,0.00111088,91860.0,91859.0,0.07065646]
[1763646647468,0.00111088,91860.0,91859.0,0.000146]
[1763646648944,0.00111088,91860.0,91859.0,0.21787099]
[1763646649151,0.00111088,91860.0,91859.0,0.000146]
[1763646649874,0.00111088,91860.0,91859.0,0.009776]
[1763646650513,0.00211088,91860.0,91859.0,0.22750099]
[1763646650720,0.00211088,91860.0,91859.0,0.31992517]
[1763646650949,0.00111088,91860.0,91859.0,0.31992517]
[1763646651202,0.00111088,91860.0,91859.0,0.32955517]
[1763646652063,0.00111088,91860.0,91859.0,0.33327517]
[1763646652291,0.00111088,91860.0,91859.0,0.38537766]
[1763646654066,0.00111088,91860.0,91859.0,0.38737766]
[1763646655066,0.01088257,91890.0,91859.0,0.38737766]
[1763646655067,9e-05,91894.0,91891.0,0.01088245]
[1763646655236,9e-05,91894.0,91893.0,0.21764443]
[1763646655237,0.00020916,91894.0,91893.0,0.21764443]
[1763646655921,0.00020916,91894.0,91886.0,0.01088305]
[1763646655922,0.0004,91910.0,91909.0,0.21760654]
[1763646656098,0.0004,91910.0,91909.0,0.24154334]
[1763646656658,0.0004,91910.0,91909.0,0.29736583]
[1763646657863,0.0004,91910.0,91909.0,0.30736583]
[1763646658162,0.0004,91910.0,91909.0,0.30836583]
[1763646658403,0.0004,91910.0,91909.0,0.30736583]
[1763646659595,0.0004,91960.0,91909.0,0.30736583]
[1763646659596,0.0004,91960.0,91929.0,0.26966169]
[1763646659808,0.0004,91960.0,91929.0,0.37903636]
[1763646659809,0.00052608,91930.0,91929.0,0.37903636]
[1763646659998,0.00052608,91930.0,91929.0,0.34603636]
[1763646660144,0.00052608,91930.0,91929.0,0.37903636]
[1763646660344,0.0004,91960.0,91949.0,0.21727379]
[1763646660786,0.0004,91960.0,91949.0,0.26937628]
[1763646660989,0.0004,91960.0,91949.0,0.36574844]
[1763646661189,0.0004,91960.0,91959.0,0.26959071]
[1763646661388,0.00082017,91960.0,91959.0,0.28331071]
[1763646661602,0.00082017,91960.0,91959.0,0.60631071]
[1763646661603,1.7e-07,91960.0,91959.0,0.60631071]
[1763646661796,0.23969296,91996.0,91987.0,0.0108711]
[1763646662038,0.00012605,91996.0,91990.0,0.02718413]
[1763646662246,0.00012605,91996.0,91995.0,0.21740311]
[1763646662597,0.00012605,91996.0,91995.0,0.21716503]
[1763646662806,0.00012605,91996.0,91993.0,0.22827599]
[1763646663001,0.00012605,91996.0,91995.0,0.21740311]
[1763646663385,0.00012605,91996.0,91995.0,0.2337165]
[1763646663997,0.04000605,91996.0,91981.0,0.01087181]
[1763646664223,0.01512605,91996.0,91990.0,0.01631339]
[1763646664426,0.00012605,91996.0,91995.0,0.001]
[1763646664637,0.00112605,91996.0,91995.0,0.001]
[1763646664837,0.00112605,91996.0,91994.0,0.21740385]
[1763646665036,0.00112605,91996.0,91995.0,0.04022789]
[1763646665236,0.00012605,91996.0,91995.0,0.04022789]
[1763646666362,0.00012605,91996.0,91995.0,0.09233038]
[1763646666524,9e-05,92018.0,92009.0,0.21737003]
[1763646666702,9e-05,92018.0,92009.0,0.22109003]
[1763646666885,0.00474724,92010.0,92009.0,0.28884843]
[1763646667102,0.00474724,92010.0,92009.0,0.34095092]
[1763646667676,0.00474724,92010.0,92009.0,0.12358089]
[1763646668214,0.00474724,92010.0,92009.0,0.05682249]
[1763646668415,0.00474724,92010.0,92009.0,0.07313588]
[1763646668601,0.00474724,92010.0,92009.0,0.08413588]
[1763646669681,0.00439325,92010.0,92009.0,0.08413588]
[1763646669895,9e-05,92018.0,92009.0,0.08413588]
[1763646669896,9e-05,92018.0,92017.0,0.21735114]
[1763646670106,0.0004,92020.0,92019.0,0.3024489]
[1763646670307,0.0004,92020.0,92019.0,0.6254489]
[1763646670532,0.0004,92050.0,92039.0,0.21729918]
[1763646670691,0.00052598,92040.0,92039.0,0.26940167]
[1763646670964,0.0004,92050.0,92049.0,0.21727558]
[1763646671318,0.0004,92050.0,92047.0,0.02003339]
[1763646671600,0.0004,92050.0,92049.0,0.21727558]
[1763646671746,0.0004,92050.0,92049.0,0.02699019]
[1763646671966,0.01086495,92039.0,92020.0,0.51258336]
[1763646672134,0.04028,92050.0,92019.0,0.00372]
[1763646672135,0.01086661,92025.0,92019.0,0.00372]
[1763646672343,0.28149738,92049.0,92023.0,0.01631339]
[1763646672582,0.01086519,92037.0,92024.0,0.02483699]
[1763646672922,0.01086472,92041.0,92030.0,0.01086602]
[1763646673130,0.01086436,92044.0,92025.0,0.21733224]
[1763646673131,0.02716092,92044.0,92034.0,0.2173098]
[1763646673347,0.01086318,92054.0,92043.0,0.01086448]
[1763646673551,0.00372,92068.0,92048.0,0.21727572]
[1763646673759,0.01086106,92072.0,92048.0,0.21727572]
[1763646673960,0.01086153,92068.0,92048.0,0.21727572]
[1763646674136,0.22809533,92067.0,92048.0,0.21727572]
[1763646674386,0.01086307,92055.0,92044.0,0.21728619]
[1763646674587,0.01086307,92055.0,92045.0,0.02444645]
[1763646674588,0.01086377,92049.0,92045.0,0.02444645]
[1763646674704,0.0004,92050.0,92049.0,0.21727558]
[1763646675111,0.0004,92050.0,92048.0,0.21727676]
[1763646676231,0.0004,92050.0,92049.0,0.05210249]
[1763646676439,0.00155781,92050.0,92049.0,0.033]
[1763646676643,0.00155781,92050.0,92049.0,0.01631339]
[1763646676846,0.00155781,92050.0,92041.0,0.01086472]
[1763646677049,0.0004,92050.0,92048.0,0.21727609]
[1763646677276,0.0004,92050.0,92047.0,0.22814254]
[1763646677461,0.0004,92050.0,92043.0,0.01086448]
[1763646677462,0.01086413,92046.0,92043.0,0.01631339]
[1763646677671,0.0004,92050.0,92044.0,0.21728598]
[1763646677876,0.0004,92050.0,92048.0,0.21727565]
[1763646678076,0.0004,92050.0,92043.0,0.01631339]
[1763646678320,0.0004,92050.0,92044.0,0.01631339]
[1763646678321,0.21728502,92045.0,92044.0,0.01631339]
[1763646678537,0.2172921,92042.0,92034.0,0.000146]
[1763646678687,0.02488,92049.0,92034.0,0.000146]
[1763646678688,0.01086354,92051.0,92046.0,0.01086413]
[1763646679070,0.22813328,92052.0,92034.0,0.000146]
[1763646679071,0.01086436,92044.0,92034.0,0.000146]
[1763646679234,0.01086484,92040.0,92034.0,0.000146]
[1763646679439,0.21728816,92044.0,92042.0,0.01631339]
[1763646679762,0.01086448,92043.0,92039.0,0.01086495]
[1763646679968,0.01086448,92043.0,92034.0,0.21745616]
[1763646679969,0.01086472,92041.0,92034.0,0.21745616]
[1763646680182,0.01086495,92039.0,92034.0,0.000146]
[1763646680383,0.21730782,92036.0,92034.0,0.000146]
[1763646680585,0.02718,92035.0,92034.0,0.000146]
[1763646680785,0.05206,92035.0,92034.0,0.000146]
[1763646681032,0.21729352,92042.0,92034.0,0.000146]
[1763646681240,0.21730847,92036.0,92034.0,0.000146]
[1763646681463,0.015,92035.0,92034.0,0.000146]
[1763646681665,0.21730847,92036.0,92034.0,0.000146]
[1763646681868,0.015,92035.0,92034.0,0.000146]
[1763646682044,0.21730847,92036.0,92034.0,0.000146]
[1763646682604,0.00092633,92042.0,92037.0,0.01086519]
[1763646682605,0.22908416,92042.0,92037.0,0.01086519]
[1763646682781,0.01086519,92037.0,92034.0,0.000146]
[1763646683046,0.01218,92053.0,92044.0,0.01086436]
[1763646683262,0.01218,92053.0,92044.0,0.02717775]
[1763646683502,0.01086153,92068.0,92048.0,0.21727663]
[1763646683714,0.01086153,92068.0,92047.0,0.22814193]
[1763646683715,0.01086236,92061.0,92047.0,0.01086401]
[1763646683925,0.02488,92057.0,92047.0,0.01086401]
[1763646684145,0.02488,92057.0,92040.0,0.00372]
[1763646684146,0.01086425,92045.0,92040.0,0.00372]
[1763646684363,0.01086519,92037.0,92034.0,0.000146]
[1763646684584,0.01086519,92037.0,92033.0,0.01086566]
[1763646684818,0.01086578,92032.0,92031.0,0.01631339]
[1763646685045,0.01086543,92035.0,92031.0,0.01631339]
[1763646685274,0.01086554,92034.0,92013.0,0.01086802]
[1763646685445,0.01086554,92034.0,92028.0,0.01631339]
[1763646685446,0.21731335,92033.0,92028.0,0.01631339]
[1763646685677,0.01086625,92028.0,92021.0,0.00384598]
[1763646685876,0.21733855,92023.0,92021.0,0.00012598]
[1763646686154,0.323,92033.0,92026.0,0.22819529]
[1763646686386,0.323,92033.0,92025.0,0.02718]
[1763646686387,0.01086436,92044.0,92035.0,0.01086543]
[1763646686585,0.0004,92050.0,92042.0,0.0108646]
[1763646686791,0.21727558,92049.0,92044.0,0.21728572]
[1763646686993,0.21727558,92049.0,92042.0,0.0108646]
[1763646686994,0.01086389,92048.0,92030.0,0.01086602]
[1763646687187,0.01086425,92045.0,92036.0,0.228171]
[1763646687480,0.01086425,92045.0,92034.0,0.01086554]
[1763646687481,0.01086377,92049.0,92039.0,0.01631339]
[1763646687674,0.22815768,92042.0,92039.0,0.01631339]
[1763646687987,0.21729519,92041.0,92037.0,0.01086519]
[1763646688208,0.21728464,92046.0,92037.0,0.01086519]
[1763646688209,0.00081057,92038.0,92037.0,0.01086519]
[1763646691481,0.00081057,92038.0,92037.0,0.02186519]
[1763646693156,0.00081057,92038.0,92037.0,0.02086519]
[1763646693357,0.00081057,92038.0,92037.0,0.01086519]
[1763646693602,0.00081057,92038.0,92037.0,0.01186519]
[1763646693809,5.7e-07,92038.0,92037.0,0.02186519]
[1763646693979,0.0004,92050.0,92049.0,0.21727558]
[1763646694184,0.0004,92050.0,92049.0,0.28941146]
[1763646694407,0.00026727,92085.0,92083.0,0.21719368]
[1763646694632,0.00026727,92085.0,92076.0,0.01086059]
[1763646694947,0.00026727,92085.0,92083.0,0.21719366]
[1763646695078,0.00068728,92085.0,92083.0,0.21719366]
[1763646695484,0.00068728,92085.0,92084.0,0.01631339]
[1763646695884,0.00068728,92085.0,92075.0,0.21721293]
[1763646696088,0.00068728,92085.0,92060.0,0.21724961]
[1763646696089,0.01085976,92083.0,92060.0,0.21724961]
[1763646696343,0.323,92083.0,92070.0,0.0108613]
[1763646696557,0.01085988,92082.0,92067.0,0.01086165]
[1763646696753,0.01086035,92078.0,92070.0,0.0108613]
[1763646696954,0.01086035,92078.0,92060.0,0.51258336]
[1763646696955,0.01086094,92073.0,92063.0,0.01086212]
[1763646697155,0.21721036,92077.0,92064.0,0.010862]
[1763646697356,0.01086082,92074.0,92071.0,0.22808357]
[1763646697559,0.21724318,92063.0,92061.0,0.01631339]
[1763646697734,0.21724361,92063.0,92061.0,0.01631339]
[1763646697938,0.21722954,92069.0,92062.0,0.01631339]
[1763646698165,0.02306,92074.0,92068.0,0.01086153]
[1763646698416,0.01086047,92077.0,92072.0,0.21722097]
[1763646698630,0.01086082,92074.0,92066.0,0.01086177]
[1763646698804,0.323,92081.0,92077.0,0.01086047]
[1763646699013,0.323,92081.0,92078.0,0.22806715]
[1763646699217,0.00068728,92085.0,92079.0,0.04346443]
[1763646699412,0.2287378,92085.0,92079.0,0.01631339]
[1763646699631,0.2172282,92070.0,92063.0,0.02717551]
[1763646699764,0.24039467,92072.0,92067.0,0.22809451]
[1763646699961,0.0108613,92070.0,92063.0,0.02003339]
[1763646700201,0.22809684,92067.0,92063.0,0.01631339]
[1763646700444,0.01086153,92068.0,92063.0,0.23355489]
[1763646700617,0.21723624,92066.0,92063.0,0.01631339]
[1763646700841,0.21723624,92066.0,92058.0,0.22811658]
[1763646700842,0.01086259,92059.0,92050.0,0.01086366]
[1763646701146,0.01231,92051.0,92043.0,0.01086448]
[1763646701380,0.24044548,92051.0,92043.0,0.01086448]
[1763646701603,0.01086377,92049.0,92046.0,0.01631339]
[1763646701826,0.01086377,92049.0,92038.0,0.01458507]
[1763646701827,0.01086448,92043.0,92038.0,0.01458507]
[1763646702014,0.01086366,92050.0,92038.0,0.01458507]
[1763646702015,0.01231,92051.0,92049.0,0.21727443]
[1763646702208,0.01086389,92048.0,92044.0,0.01086436]
[1763646702411,0.01086354,92051.0,92048.0,0.21727669]
[1763646702616,0.22814492,92047.0,92042.0,0.0108646]
[1763646702957,0.001,92051.0,92047.0,0.01086401]
[1763646703130,0.001,92051.0,92026.0,0.3259935]
[1763646703131,0.0108646,92042.0,92032.0,0.02717917]
[1763646703305,0.01086389,92048.0,92024.0,0.01086673]
[1763646703306,0.0108659,92031.0,92024.0,0.01086673]
[1763646703487,0.21733011,92027.0,92024.0,0.00012598]
[1763646703692,0.21733224,92025.0,92024.0,0.00012598]
[1763646703909,0.01086578,92032.0,92027.0,0.01086637]
[1763646704124,0.22818364,92032.0,92027.0,0.22819259]
[1763646704318,0.07210247,92060.0,92027.0,0.22819259]
[1763646704319,0.323,92038.0,92036.0,0.21730436]
[1763646704518,0.00372,92044.0,92040.0,0.22816166]
[1763646704723,0.01458436,92044.0,92039.0,0.01086495]
[1763646704936,0.0108633,92053.0,92042.0,0.21729142]
[1763646705134,1.08601176,92081.0,92036.0,0.01631339]
[1763646705135,0.00026728,92051.0,92050.0,0.22813528]
[1763646705331,0.00126728,92051.0,92044.0,0.01086436]
[1763646705610,0.00026728,92051.0,92049.0,0.21727489]
[1763646705824,0.00026728,92051.0,92050.0,0.01631339]
[1763646706754,0.00126728,92051.0,92050.0,0.01631339]
[1763646706874,0.00126728,92051.0,92025.0,0.05720556]
[1763646706875,0.01086554,92034.0,92025.0,0.05720556]
[1763646707074,0.01086377,92049.0,92042.0,0.21729007]
[1763646707299,0.02432728,92051.0,92043.0,0.01631339]
[1763646707300,0.00498728,92051.0,92043.0,0.01631339]
[1763646707578,0.00498728,92051.0,92049.0,0.21727558]
[1763646707579,0.00126728,92051.0,92049.0,0.21727558]
[1763646708034,0.00026728,92051.0,92049.0,0.21727558]
[1763646708594,0.00026728,92051.0,92046.0,0.22813951]
[1763646708595,0.01086366,92050.0,92046.0,0.22814521]
[1763646708825,0.00026728,92051.0,92049.0,0.21727438]
[1763646709222,0.00126728,92051.0,92049.0,0.21727438]
[1763646709518,0.00026728,92051.0,92049.0,0.3112479]
[1763646709900,0.001,92050.0,92049.0,0.3112479]
[1763646710421,0.001,92050.0,92049.0,0.54027438]
[1763646710844,0.0013473,92050.0,92049.0,0.54027438]
[1763646711044,0.0003473,92050.0,92049.0,0.54027438]
[1763646711921,0.0003473,92050.0,92049.0,0.55027438]
[1763646712122,0.0003473,92050.0,92049.0,0.54027438]
[1763646712525,0.01085917,92088.0,92072.0,0.01086106]
[1763646712884,0.01231,92079.0,92074.0,0.01086082]
[1763646713192,0.01086035,92078.0,92067.0,0.01086165]
[1763646713380,0.01086071,92075.0,92068.0,0.02532727]
[1763646713529,0.03801124,92078.0,92057.0,0.01631339]
[1763646713530,0.21721163,92077.0,92073.0,0.21721819]
[1763646713711,0.21721163,92077.0,92071.0,0.01631339]
[1763646713712,0.21721996,92073.0,92071.0,0.01631339]
[1763646713922,0.21763164,92077.0,92071.0,0.01631339]
[1763646713923,0.00042001,92077.0,92071.0,0.02717457]
[1763646714126,0.01086082,92074.0,92071.0,0.02717457]
[1763646714363,0.2280765,92075.0,92071.0,0.01631339]
[1763646714628,0.2280765,92075.0,92067.0,0.21723233]
[1763646714629,0.02670106,92072.0,92067.0,0.22809398]
[1763646714857,0.01086118,92071.0,92067.0,0.22809398]
[1763646715102,0.01584,92072.0,92070.0,0.21722576]
[1763646715288,0.21722668,92070.0,92068.0,0.0467065]
[1763646715558,0.01086106,92072.0,92066.0,0.01086177]
[1763646715783,0.02715207,92074.0,92071.0,0.21722366]
[1763646716001,0.02715207,92074.0,92067.0,0.01086165]
[1763646716002,0.03801289,92074.0,92069.0,0.01086141]
[1763646716227,0.22808059,92073.0,92070.0,0.0108613]
[1763646716376,0.00042001,92077.0,92054.0,0.06194721]
[1763646716582,0.21721494,92075.0,92069.0,0.01086141]
[1763646716800,0.21721933,92073.0,92069.0,0.01086141]
[1763646717233,0.01584,92070.0,92069.0,0.01086141]
[1763646717451,0.01086224,92062.0,92057.0,0.01631339]
[1763646717657,0.22810749,92062.0,92059.0,0.217251]
[1763646717912,0.22810749,92062.0,92057.0,0.01631339]
[1763646717913,0.01086224,92062.0,92057.0,0.01631339]
[1763646718086,0.01584,92058.0,92055.0,0.22812428]
[1763646718288,0.22811795,92058.0,92053.0,0.22812793]
[1763646718495,0.01086366,92050.0,92046.0,0.05822721]
[1763646718693,0.01086366,92050.0,92039.0,0.01086495]
[1763646718694,0.01086389,92048.0,92043.0,0.01086448]
[1763646718971,0.01086389,92048.0,92039.0,0.01086495]
[1763646718972,0.2172803,92047.0,92045.0,0.01631339]
[1763646719157,0.2172803,92047.0,92039.0,0.01086495]
[1763646719158,0.0108646,92042.0,92040.0,0.01631339]
[1763646719348,0.01086448,92043.0,92036.0,0.01086531]
[1763646719647,0.01086342,92052.0,92047.0,0.22814336]
[1763646719852,0.22813913,92050.0,92045.0,0.22814801]
[1763646720095,0.00041975,92052.0,92049.0,0.2172729]
[1763646720296,0.00041975,92052.0,92049.0,0.01086377]
[1763646721219,0.00041975,92052.0,92049.0,0.01086377]
[1763646721561,0.00041975,92052.0,92050.0,0.21727322]
[1763646721766,0.01086354,92051.0,92043.0,0.01086448]
[1763646721971,0.01086401,92047.0,92040.0,0.21729597]
[1763646722185,0.01086413,92046.0,92036.0,0.05822721]
[1763646722381,0.00041975,92052.0,92047.0,0.01086401]
[1763646722622,0.001,92050.0,92049.0,0.21727558]
[1763646723839,0.00041975,92052.0,92051.0,0.21727086]
[1763646727654,0.00041975,92052.0,92051.0,0.61810733]
[1763646727878,0.00041975,92052.0,92051.0,0.54027086]
[1763646728012,0.00041975,92052.0,92051.0,0.72717404]
[1763646728510,0.00041975,92052.0,92051.0,0.6504358]
[1763646728853,0.00041975,92052.0,92051.0,0.72817326]
[1763646729031,0.00041975,92052.0,92051.0,0.6504358]
[1763646729213,0.00041975,92052.0,92051.0,0.72817134]
[1763646729413,0.00041975,92052.0,92051.0,0.6504358]
[1763646729612,0.00041975,92052.0,92051.0,0.3274358]
[1763646730253,0.00041975,92052.0,92051.0,0.21827086]
[1763646731551,0.25568825,92052.0,92051.0,0.001]
[1763646732122,0.01571975,92052.0,92051.0,0.001]
[1763646732326,0.00041975,92052.0,92051.0,0.001]
[1763646733190,0.00041975,92052.0,92050.0,0.21727213]
[1763646733389,0.00041975,92052.0,92049.0,0.22813793]
[1763646733592,0.21727672,92049.0,92036.0,0.21730452]
[1763646733814,0.01086436,92044.0,92038.0,0.01086507]
[1763646734149,0.01086436,92044.0,92035.0,0.01086543]
[1763646734150,0.02214366,92050.0,92044.0,0.2172856]
[1763646734400,0.02214366,92050.0,92046.0,0.21728191]
[1763646734401,0.01086377,92049.0,92046.0,0.21728191]
[1763646734599,0.01086377,92049.0,92041.0,0.22815869]
[1763646734600,0.01086401,92047.0,92041.0,0.22815869]
[1763646734811,0.01086389,92048.0,92044.0,0.22815098]
[1763646735034,0.01128,92050.0,92047.0,0.01086401]
[1763646735389,0.01128,92050.0,92048.0,0.21727682]
[1763646735577,0.001,92050.0,92048.0,0.21727682]
[1763646736174,0.001,92050.0,92047.0,0.22814318]
[1763646736378,0.0153,92048.0,92046.0,0.21728211]
[1763646736584,0.001,92050.0,92048.0,0.21727764]
[1763646736791,0.01086377,92049.0,92042.0,0.21729043]
[1763646736992,0.00041975,92052.0,92045.0,0.01086425]
[1763646737210,0.001,92048.0,92046.0,0.21728266]
[1763646737411,0.01086401,92047.0,92042.0,0.0108646]
[1763646737612,0.21728738,92044.0,92039.0,0.24447653]
[1763646737789,0.01086472,92041.0,92037.0,0.01086519]
[1763646738011,0.001,92050.0,92049.0,0.21727558]
[1763646738211,0.01128,92060.0,92049.0,0.0712894]
[1763646738569,0.01128,92060.0,92051.0,0.21727086]
[1763646738774,0.03356177,92066.0,92051.0,0.21727086]
[1763646738775,0.01128,92067.0,92051.0,0.21727086]
[1763646738912,0.01086,92081.0,92051.0,0.21727086]
[1763646739112,0.01128,92071.0,92051.0,0.21727086]
[1763646740214,0.22810486,92063.0,92051.0,0.21727086]
[1763646740545,0.01086236,92061.0,92051.0,0.21727086]
[1763646740752,0.22810746,92062.0,92051.0,0.21727086]
[1763646740951,0.22808359,92072.0,92051.0,0.21727086]
[1763646741133,0.03843295,92071.0,92051.0,0.21727086]
[1763646741339,0.01086141,92069.0,92051.0,0.21727086]
[1763646741534,0.010862,92064.0,92051.0,0.21727086]
[1763646741796,0.01128,92071.0,92051.0,0.21727086]
[1763646741977,0.22809946,92066.0,92051.0,0.21727086]
[1763646742162,0.01086236,92061.0,92051.0,0.21727086]
[1763646742357,0.01086295,92056.0,92051.0,0.21727086]
[1763646742580,0.22812044,92057.0,92051.0,0.21727086]
[1763646742956,0.21725082,92060.0,92051.0,0.21727086]
[1763646743175,0.01086259,92059.0,92051.0,0.21727086]
[1763646743371,0.2281133,92060.0,92051.0,0.21727086]
[1763646743559,0.2172348,92067.0,92051.0,0.21727086]
[1763646743759,0.01086212,92063.0,92051.0,0.21727086]
[1763646744210,0.21723425,92067.0,92051.0,0.21727086]
[1763646744427,0.01086212,92063.0,92051.0,0.21727086]
[1763646744628,0.01086259,92059.0,92051.0,0.21727086]
[1763646744914,0.0376261,92068.0,92051.0,0.21727086]
[1763646745122,0.02676457,92068.0,92051.0,0.21727086]
[1763646745326,0.01128,92071.0,92051.0,0.21727086]
[1763646745551,0.01086094,92073.0,92051.0,0.21727086]
[1763646745751,0.02715266,92072.0,92051.0,0.21727086]
[1763646745925,0.21721329,92076.0,92051.0,0.21727086]
[1763646745926,0.01086047,92077.0,92051.0,0.21727086]
[1763646746126,0.01086094,92073.0,92051.0,0.21727086]
[1763646746695,0.22806757,92078.0,92051.0,0.21727086]
[1763646746902,0.01128,92071.0,92051.0,0.21727086]
[1763646747109,0.02214118,92071.0,92051.0,0.21727086]
[1763646747321,0.01086177,92066.0,92051.0,0.21727086]
[1763646747541,0.04484118,92071.0,92051.0,0.21727086]
[1763646747791,0.01086153,92068.0,92051.0,0.21727086]
[1763646747961,0.01086177,92066.0,92051.0,0.23358425]
[1763646748140,0.01128,92071.0,92051.0,0.23358425]
[1763646748348,0.02214118,92071.0,92051.0,0.23358425]
[1763646748751,0.01128,92071.0,92051.0,0.23358425]
[1763646749185,0.21722231,92072.0,92051.0,0.23358425]
[1763646749407,0.21722235,92072.0,92051.0,0.23358425]
[1763646749624,0.01086047,92077.0,92051.0,0.23358425]
[1763646749786,0.21721425,92075.0,92051.0,0.23358425]
[1763646749987,0.01086094,92073.0,92051.0,0.23358425]
[1763646750193,0.03801289,92074.0,92051.0,0.38098425]
[1763646750386,0.21722528,92071.0,92051.0,0.4783553]
[1763646750653,0.01217,92061.0,92051.0,0.38098425]
[1763646750771,0.01086082,92074.0,92051.0,0.38098425]
[1763646750975,0.01086141,92069.0,92051.0,0.38098425]
[1763646751201,0.02671699,92070.0,92051.0,0.38098425]
[1763646751397,0.01784249,92071.0,92051.0,0.38098425]
[1763646751607,0.01086165,92067.0,92051.0,0.38098425]
[1763646751818,0.21722889,92069.0,92051.0,0.38098425]
[1763646752034,0.010862,92064.0,92051.0,0.38098425]
[1763646752241,0.010862,92064.0,92051.0,0.16371339]
[1763646752242,0.22812716,92054.0,92051.0,0.16371339]
[1763646752438,0.01086318,92054.0,92051.0,0.16371339]
[1763646752688,0.23385825,92052.0,92051.0,0.1474]
[1763646752894,0.25719825,92052.0,92051.0,0.1474]
[1763646753121,0.21728738,92044.0,92041.0,0.05838354]
[1763646753337,0.21728738,92044.0,92036.0,0.05838354]
[1763646753338,0.21729682,92040.0,92036.0,0.05838354]
[1763646753484,0.21729682,92040.0,92033.0,0.21731318]
[1763646753485,0.01086495,92039.0,92034.0,0.22817644]
[1763646753713,0.01086495,92039.0,92029.0,0.28657187]
[1763646753714,0.01086531,92036.0,92029.0,0.28657187]
[1763646753936,0.22817056,92037.0,92033.0,0.21731182]
[1763646754166,0.01086543,92035.0,92032.0,0.01631339]
[1763646754405,0.21731116,92034.0,92030.0,0.01086602]
[1763646754624,0.01086543,92035.0,92023.0,0.01086684]
[1763646754625,0.01086602,92030.0,92023.0,0.06925038]
[1763646754828,0.01086602,92030.0,92027.0,0.01631339]
[1763646755031,0.01086566,92033.0,92028.0,0.01086625]
[1763646755236,0.0108659,92031.0,92023.0,0.01631339]
[1763646755685,0.01086578,92032.0,92027.0,0.01086637]
[1763646755875,0.22818091,92033.0,92029.0,0.01086614]